bitfinex-derivatives/quotes_ETHF0:USTF0_20250520
["timestamp","ask_amount","ask_price","bid_price","bid_amount"]
[1747718462360,3.985,2572.8,2572.5,0.77725]
[1747718462560,3.985,2572.8,2572.6,1.9494]
[1747718462863,3.985,2572.8,2572.7,1.3187]
[1747718463967,3.2078,2572.8,2572.4,0.00582524]
[1747718464170,0.77726,2572.5,2572.4,0.00582524]
[1747718464466,0.77725,2572.6,2572.4,0.00582524]
[1747718464667,2.02745,2572.6,2572.4,1.35652524]
[1747718464871,0.77726,2572.5,2572.4,1.35652524]
[1747718465265,2.02745,2572.6,2572.4,1.35652524]
[1747718465465,0.77726,2572.5,2572.4,1.35652524]
[1747718466368,2.02744,2572.6,2572.4,1.35652524]
[1747718467673,0.77726,2572.5,2572.4,1.35652524]
[1747718468173,2.02745,2572.6,2572.4,1.35652524]
[1747718469364,0.77726,2572.5,2572.4,1.35652524]
[1747718469563,1.2502,2572.6,2572.4,1.35652524]
[1747718469564,2.02744,2572.6,2572.4,1.35652524]
[1747718470168,0.77726,2572.5,2572.4,0.00582524]
[1747718470370,1.2928,2572.5,2572.4,0.00582524]
[1747718470569,1.46172,2572.7,2572.4,2.02521524]
[1747718470770,0.77724,2572.6,2572.4,1.24792524]
[1747718471168,2.07004,2572.6,2572.4,1.24792524]
[1747718471582,1.2928,2572.6,2572.4,2.02521524]
[1747718471769,2.07003,2572.6,2572.4,2.02521524]
[1747718472074,0.77726,2572.5,2572.4,1.24792524]
[1747718472374,2.07005,2572.6,2572.4,1.24792524]
[1747718472674,1.2928,2572.6,2572.4,2.02521524]
[1747718473472,2.07004,2572.6,2572.4,2.02521524]
[1747718473671,2.07004,2572.6,2572.4,1.24792524]
[1747718473977,0.77726,2572.5,2572.4,1.24792524]
[1747718475070,2.07005,2572.6,2572.4,1.24792524]
[1747718475776,0.77726,2572.5,2572.4,1.24792524]
[1747718475976,2.12416,2572.5,2572.4,1.24792524]
[1747718477572,1.3469,2572.5,2572.4,2.02521524]
[1747718477767,1.3469,2572.5,2572.4,1.24792524]
[1747718477975,2.12416,2572.5,2572.4,1.24792524]
[1747718478271,2.12416,2572.5,2572.4,0.00582524]
[1747718486083,5.33196,2572.5,2572.4,0.00582524]
[1747718487181,13.31996,2572.5,2572.4,0.00582524]
[1747718488081,5.33196,2572.5,2572.4,0.00582524]
[1747718491787,5.33196,2572.5,2572.4,0.12731472]
[1747718494688,5.33196,2572.5,2572.4,1e-08]
[1747718497289,13.32096,2572.5,2572.4,1e-08]
[1747718501187,18.32096,2572.5,2572.4,1e-08]
[1747718501793,0.77768,2571.2,2570.9,3.2078]
[1747718501991,3.98536,2571.5,2571.4,1.271]
[1747718502794,0.77769,2571.1,2571.0,1.3129]
[1747718503189,0.77784,2570.6,2570.5,3.2078]
[1747718503385,0.77784,2570.6,2570.5,1.2601]
[1747718503591,0.77787,2570.5,2570.1,2.52650853]
[1747718503784,0.77787,2570.5,2570.1,3.16070853]
[1747718504287,48.79,2570.9,2570.2,1.2846]
[1747718504497,0.77784,2570.6,2570.5,1.9105]
[1747718505392,11.96262,2570.7,2570.5,1.9105]
[1747718505794,11.96262,2570.7,2570.6,0.6334]
[1747718506397,8.75482,2570.7,2570.6,0.6334]
[1747718506896,11.96262,2570.7,2570.6,0.6334]
[1747718507897,3.98562,2570.7,2570.6,0.6334]
[1747718508097,11.96362,2570.7,2570.6,0.6334]
[1747718508395,7.978,2570.7,2570.6,0.6334]
[1747718508596,8.75581,2570.7,2570.6,0.6334]
[1747718508794,0.77784,2570.6,2570.5,1.2846]
[1747718509193,2.06184,2570.6,2570.5,1.2846]
[1747718509394,10.04084,2570.6,2570.5,1.2846]
[1747718510899,8.75684,2570.6,2570.5,1.2846]
[1747718511697,8.75784,2570.6,2570.5,1.2846]
[1747718513596,7.98,2570.6,2570.0,3.2078]
[1747718513797,0.77791,2570.4,2570.1,1.2868]
[1747718513998,0.77796,2570.2,2570.1,1.2868]
[1747718514594,0.77796,2570.2,2570.1,1.4083809]
[1747718515004,0.77796,2570.2,2570.1,1.2868]
[1747718515802,7.98582524,2570.4,2570.1,1.2868]
[1747718516106,0.77796,2570.2,2570.1,1.2868]
[1747718517405,0.77796,2570.2,2569.9,4.4799]
[1747718517406,0.77802,2570.0,2569.9,3.2078]
[1747718517601,0.77797,2570.2,2569.9,4.63423]
[1747718517807,0.77797,2570.2,2570.0,0.6699]
[1747718518607,0.77796,2570.3,2570.0,1.4479]
[1747718518806,0.77796,2570.3,2570.1,1.3662]
[1747718519108,0.77796,2570.2,2570.1,1.3662]
[1747718520605,0.77799,2570.1,2570.0,3.4099]
[1747718520907,7.98682524,2570.4,2570.0,4.18792]
[1747718521097,7.98682524,2570.4,2570.0,0.6699]
[1747718521301,0.77793,2570.3,2570.0,1.44792]
[1747718521596,0.77799,2570.1,2570.0,0.6699]
[1747718522000,0.77799,2570.1,2570.0,1.9283]
[1747718522198,0.77799,2570.1,2570.0,2.04987941]
[1747718522702,7.98682524,2570.4,2570.0,2.82789941]
[1747718522905,0.77796,2570.2,2570.0,2.82789941]
[1747718523105,0.77799,2570.1,2570.0,4.78987941]
[1747718525207,0.77799,2570.1,2570.0,1.37997941]
[1747718525605,2.05769,2570.1,2570.0,1.37997941]
[1747718525905,2.05769,2570.1,2570.0,1.2584]
[1747718527310,0.77799,2570.1,2570.0,1.2584]
[1747718527610,0.77799,2570.1,2570.0,1.38000026]
[1747718527910,2.03799,2570.1,2570.0,1.2584]
[1747718528104,2.03799,2570.1,2570.0,1.37999967]
[1747718528303,2.03799,2570.1,2570.0,1.37999988]
[1747718528499,2.03799,2570.1,2570.0,1.2584]
[1747718528799,3.2078,2570.2,2570.0,1.2584]
[1747718528800,7.982,2570.3,2570.0,4.58779986]
[1747718529007,7.982,2570.3,2570.1,0.12159986]
[1747718529210,8.75993,2570.3,2570.2,1.2415]
[1747718529511,8.75993,2570.3,2570.2,1.36309986]
[1747718529808,0.77793,2570.3,2570.2,1.36309986]
[1747718531607,2.13953,2570.3,2570.2,1.36309986]
[1747718534518,2.13953,2570.3,2570.2,0.12159986]
[1747718536819,0.00582524,2570.4,2570.2,0.12159986]
[1747718537019,0.00582524,2570.4,2570.3,5.36639986]
[1747718537319,0.00582524,2570.4,2570.3,8.10639986]
[1747718537516,0.78372524,2570.4,2570.3,8.10639986]
[1747718537918,0.00582524,2570.4,2570.3,8.10639986]
[1747718538819,0.00582524,2570.4,2570.3,8.88432986]
[1747718540916,11.1758,2570.9,2570.5,0.77784]
[1747718541118,1.94414,2571.3,2570.8,3.2078]
[1747718541119,7.968,2571.2,2570.8,3.2078]
[1747718541417,0.77773,2571.0,2570.9,1.9871]
[1747718541624,0.77773,2571.0,2570.9,2.10869986]
[1747718541818,0.77773,2571.0,2570.9,0.12159986]
[1747718542013,3.98553,2571.0,2570.9,0.12159986]
[1747718542515,0.77778,2570.8,2570.7,0.00583669]
[1747718542713,8.74578,2570.8,2570.7,0.12740951]
[1747718543618,0.77778,2570.8,2570.7,0.12740951]
[1747718544519,0.77775,2570.9,2570.7,0.12740951]
[1747718544720,2.02555,2570.9,2570.7,0.12740951]
[1747718545023,0.6429,2571.0,2570.8,2.18923282]
[1747718545221,1.42062,2571.0,2570.9,0.6531]
[1747718545414,1.42062,2571.0,2570.9,2.06457282]
[1747718545816,2.66842,2571.0,2570.9,2.06457282]
[1747718547822,2.66842,2571.0,2570.9,0.77467282]
[1747718548021,2.66842,2571.0,2570.9,0.12157282]
[1747718548620,0.77778,2570.8,2570.7,0.00583669]
[1747718548923,7.968,2570.9,2570.7,0.00583669]
[1747718549110,1.3578,2570.9,2570.7,0.00583669]
[1747718549315,1.3578,2570.9,2570.8,0.12155214]
[1747718549615,2.13555,2570.9,2570.8,0.76345214]
[1747718549819,2.13555,2570.9,2570.8,2.06405214]
[1747718550219,2.13555,2570.9,2570.8,4.80405214]
[1747718551223,2.13555,2570.9,2570.8,2.06405214]
[1747718551522,0.6429,2571.0,2570.8,2.06405214]
[1747718551722,11.9535,2571.1,2570.8,2.84183214]
[1747718552019,0.77772,2571.0,2570.9,0.12155214]
[1747718552223,0.77772,2571.0,2570.9,1.42605214]
[1747718552423,11.1758,2571.1,2570.9,2.20377214]
[1747718552719,0.77772,2571.0,2570.9,1.3045]
[1747718552920,0.77772,2571.0,2570.9,1.42605619]
[1747718553122,13.3137,2571.1,2570.9,1.42605619]
[1747718553321,0.77772,2571.0,2570.9,1.42605619]
[1747718553922,0.77772,2571.0,2570.9,1.42605272]
[1747718554323,2.13792,2571.0,2570.9,1.42605272]
[1747718557925,2.13792,2571.0,2570.9,0.12155272]
[1747718559823,0.77778,2570.8,2570.7,0.00583669]
[1747718560025,0.7779,2570.4,2570.3,0.6656]
[1747718560918,1.269,2570.7,2570.1,4.5404]
[1747718561124,2.82365,2570.3,2570.1,5.209]
[1747718562630,2.82365,2570.3,2570.1,2.0012]
[1747718564130,0.77796,2570.2,2570.1,2.0012]
[1747718564432,0.77799,2570.1,2569.8,4.67406]
[1747718564631,0.77799,2570.1,2569.9,1.2923]
[1747718564832,1.9486,2570.2,2569.9,1.2923]
[1747718565130,2.05882,2570.0,2569.9,1.2923]
[1747718565829,1.2808,2570.0,2569.9,2.07035]
[1747718566028,2.05882,2570.0,2569.9,1.2923]
[1747718566333,1.2808,2570.0,2569.9,1.2923]
[1747718566629,1.2808,2570.0,2569.9,2.07035]
[1747718566828,1.2808,2570.0,2569.9,1.2923]
[1747718567028,0.6678,2570.2,2569.8,3.2078]
[1747718567231,0.77804,2570.0,2569.9,2.74]
[1747718567633,0.77804,2570.0,2569.9,4.7308]
[1747718567833,2.1097,2570.1,2569.9,4.7308]
[1747718568137,2.1097,2570.1,2569.9,1.9908]
[1747718568328,0.77802,2570.0,2569.9,1.9908]
[1747718570839,0.77805,2569.9,2569.8,3.2078]
[1747718571032,2.02485,2569.9,2569.8,3.2078]
[1747718572137,3.8756,2570.2,2569.8,3.2078]
[1747718572138,11.8316,2570.2,2569.8,3.2078]
[1747718572340,0.77801,2570.1,2569.9,2.0034]
[1747718572938,0.77802,2570.0,2569.9,2.0034]
[1747718573132,0.77802,2570.0,2569.9,4.1133]
[1747718573333,0.77802,2570.0,2569.9,2.74]
[1747718574244,0.778,2570.1,2569.8,5.29317]
[1747718574442,1.2479,2570.1,2569.9,0.77804]
[1747718574643,1.2479,2570.1,2570.0,1.3073]
[1747718574842,1.2479,2570.1,2570.0,1.9374]
[1747718575044,2.02589,2570.1,2570.0,1.9374]
[1747718576545,0.77805,2569.9,2569.8,3.2078]
[1747718585443,0.77805,2569.9,2569.8,4.4904]
[1747718587948,1.2479,2570.1,2569.8,4.4904]
[1747718588253,0.77805,2569.9,2569.8,3.2078]
[1747718588546,7.957,2570.0,2569.8,3.2078]
[1747718588753,0.77805,2569.9,2569.8,3.2078]
[1747718588952,0.6701,2570.3,2569.8,3.2078]
[1747718589256,8.73496,2570.2,2570.1,3.2078]
[1747718589554,8.73496,2570.2,2570.1,3.8551]
[1747718589750,1.3235,2570.5,2570.1,3.8551]
[1747718590053,0.77792,2570.4,2570.2,0.6822]
[1747718590251,0.77788,2570.5,2570.2,1.46015]
[1747718590452,0.7779,2570.4,2570.2,0.6822]
[1747718592156,0.77793,2570.3,2570.2,0.6822]
[1747718592949,0.96977317,2570.6,2570.2,0.6822]
[1747718593153,0.96977317,2570.6,2570.5,3.2078]
[1747718593354,0.77788,2570.5,2570.2,3.89]
[1747718593552,0.96977317,2570.6,2570.2,3.89]
[1747718593857,9.2398,2570.9,2570.5,3.2078]
[1747718594056,9.2398,2570.9,2570.6,0.6226]
[1747718594257,0.77781,2570.7,2570.6,0.6226]
[1747718594453,0.77779,2570.8,2570.6,0.6226]
[1747718594657,0.77779,2570.8,2570.7,0.6716]
[1747718596158,2.05309,2570.8,2570.7,0.6716]
[1747718598862,0.77781,2570.7,2570.6,2.74]
[1747718599161,0.7778,2570.8,2570.5,0.6548]
[1747718599463,0.7778,2570.8,2570.6,0.6267]
[1747718599858,0.7778,2570.8,2570.7,1.3351]
[1747718601157,0.77778,2570.8,2570.7,1.3351]
[1747718602558,0.77781,2570.7,2570.6,2.74]
[1747718603262,0.77784,2570.6,2570.5,0.6548]
[1747718606159,0.6729,2570.7,2570.2,3.8537]
[1747718606361,0.77785,2570.6,2570.3,2.11002]
[1747718606558,0.77787,2570.5,2570.4,1.3321]
[1747718607670,0.77793,2570.3,2570.2,3.8537]
[1747718607961,0.77793,2570.3,2570.2,4.4569]
[1747718608170,0.77799,2570.1,2570.0,0.6459]
[1747718608861,2.12909,2570.1,2570.0,0.6459]
[1747718609964,0.77795,2570.3,2570.0,0.6459]
[1747718610165,0.77795,2570.3,2570.1,1.2648]
[1747718610565,0.77795,2570.3,2570.2,0.6634]
[1747718612168,0.77796,2570.2,2570.1,1.2648]
[1747718613658,2.09394,2570.3,2570.1,1.2648]
[1747718614267,0.77794,2570.3,2570.1,1.2648]
[1747718614870,0.77794,2570.3,2570.2,3.2078]
[1747718616361,0.77794,2570.3,2570.2,4.5373]
[1747718618674,2.09374,2570.3,2570.2,1.3295]
[1747718620874,2.09374,2570.3,2570.2,4.5373]
[1747718621076,0.96977317,2570.7,2570.2,4.5373]
[1747718621274,1.74760317,2570.7,2570.5,3.2078]
[1747718621475,1.74760317,2570.7,2570.6,1.9836]
[1747718621968,2.99020317,2570.7,2570.6,1.9836]
[1747718624679,2.02043,2570.7,2570.6,1.9836]
[1747718630485,0.77783,2570.7,2570.6,1.9836]
[1747718633992,0.77784,2570.6,2570.5,2.74]
[1747718634284,0.77799,2570.1,2570.0,2.6328]
[1747718634685,0.77795,2570.3,2570.0,2.6328]
[1747718634888,0.77799,2570.1,2570.0,0.6715]
[1747718635086,0.77799,2570.1,2570.0,1.9544]
[1747718635284,0.77799,2570.1,2570.0,4.6944]
[1747718637397,1.45049,2570.1,2570.0,4.6944]
[1747718638297,0.6725,2570.1,2569.6,3.2078]
[1747718638498,1.3709,2570.0,2569.7,1.9456]
[1747718638687,0.77805,2569.9,2569.7,1.9456]
[1747718638891,0.77809,2569.8,2569.6,3.2078]
[1747718639190,1.40779,2569.8,2569.6,3.8942]
[1747718639393,1.40779,2569.8,2569.7,1.2717]
[1747718639895,7.926,2570.0,2569.7,1.2717]
[1747718640194,7.926,2570.0,2569.9,3.2078]
[1747718640491,1.9954,2570.2,2569.9,3.2078]
[1747718640698,7.926,2570.1,2570.0,2.0443]
[1747718640999,0.77797,2570.2,2570.0,2.7307]
[1747718641197,8.70497,2570.2,2570.1,1.3578]
[1747718642101,9.95947,2570.2,2570.1,1.3578]
[1747718643199,3.2078,2570.3,2570.1,1.3578]
[1747718643399,0.96977317,2570.4,2570.3,0.77793]
[1747718643901,0.96977317,2570.4,2570.3,2.13923]
[1747718644102,0.96977317,2570.4,2570.3,4.87923]
[1747718644499,9.21276123,2570.7,2570.4,0.7779]
[1747718644500,0.96977317,2570.5,2570.4,0.7779]
[1747718644698,0.96977317,2570.5,2570.4,2.7776]
[1747718645101,0.96977317,2570.5,2570.4,5.5176]
[1747718646801,0.96977317,2570.5,2570.4,4.7397]
[1747718646995,0.96977317,2570.5,2570.4,5.5176]
[1747718647197,0.77785,2570.6,2570.4,5.5176]
[1747718647396,0.77785,2570.6,2570.5,3.835]
[1747718647593,0.77785,2570.6,2570.5,5.1918]
[1747718648003,1.2635,2570.8,2570.5,5.1918]
[1747718648004,0.77778,2570.8,2570.5,5.1918]
[1747718648298,0.96977317,2571.0,2570.6,0.77784]
[1747718648499,0.96977317,2571.0,2570.7,1.3568]
[1747718648803,0.96977317,2571.0,2570.9,0.77775]
[1747718649204,0.96977317,2571.0,2570.9,4.87455]
[1747718649901,0.96977317,2571.0,2570.9,4.0968]
[1747718650502,0.96977317,2571.0,2570.9,4.87455]
[1747718650795,1.74749317,2571.0,2570.9,4.0968]
[1747718651803,0.77772,2571.0,2570.9,4.0968]
[1747718652599,2.14202,2571.0,2570.9,4.0968]
[1747718653100,0.77775,2570.9,2570.8,3.2078]
[1747718653302,2.78926,2570.9,2570.5,3.835]
[1747718653500,2.78926,2570.9,2570.6,2.08323]
[1747718653803,2.78926,2570.9,2570.7,1.3054]
[1747718654007,0.78350669,2571.2,2570.9,0.77773]
[1747718654305,0.78350669,2571.2,2571.0,1.9365]
[1747718655106,0.78350669,2571.2,2571.0,4.6765]
[1747718655307,0.00583669,2571.2,2571.0,5.4542]
[1747718655802,0.00583669,2571.2,2571.1,0.77769]
[1747718656104,0.00583669,2571.2,2571.1,3.98549]
[1747718659503,0.00583669,2571.2,2571.1,3.2078]
[1747718659897,0.00583669,2571.2,2571.1,3.98549]
[1747718664105,0.00583669,2571.2,2571.1,3.2078]
[1747718664300,0.00583669,2571.2,2571.1,3.98549]
[1747718665012,0.78349669,2571.2,2571.1,3.2078]
[1747718665215,0.78349669,2571.2,2571.0,5.45422]
[1747718665708,0.00583669,2571.2,2571.1,0.77769]
[1747718665912,0.00583669,2571.2,2571.1,3.98549]
[1747718666106,0.78349669,2571.2,2571.1,3.2078]
[1747718666308,0.00583669,2571.2,2571.1,3.98549]
[1747718666609,0.00583669,2571.2,2571.0,4.0454]
[1747718666815,0.00583669,2571.2,2571.1,0.77769]
[1747718667013,0.00583669,2571.2,2571.1,3.98549]
[1747718669808,0.00583669,2571.2,2571.1,5.34519]
[1747718671612,0.00583669,2571.2,2571.1,5.43005477]
[1747718673018,0.00583669,2571.2,2571.1,4.07035477]
[1747718673514,1.26513669,2571.2,2571.1,4.07035477]
[1747718673716,1.26513669,2571.2,2571.1,3.98549]
[1747718674916,1.26513669,2571.2,2571.1,5.27529]
[1747718675118,0.00583669,2571.2,2571.1,5.27529]
[1747718676822,0.00583669,2571.2,2571.1,13.26815477]
[1747718677714,50.3318,2572.2,2571.9,0.77742]
[1747718677913,3.73976317,2572.1,2571.9,0.77742]
[1747718678115,3.73976317,2572.1,2571.9,3.51742]
[1747718678309,3.73976317,2572.1,2571.9,5.52692]
[1747718678510,2.96237317,2572.1,2572.0,0.77741]
[1747718678822,2.96237317,2572.1,2571.9,4.7495]
[1747718679220,1.9926,2572.1,2571.9,4.7495]
[1747718679517,0.77741,2572.0,2571.9,2.74]
[1747718679709,2.12101,2572.0,2571.9,2.74]
[1747718679913,0.77744,2571.9,2571.8,0.00583669]
[1747718680221,0.77766,2571.2,2571.1,3.2078]
[1747718680723,9.1513,2571.7,2571.1,3.98549]
[1747718681019,0.77762,2571.4,2571.1,3.98547]
[1747718681214,1.2443,2571.3,2571.1,3.98547]
[1747718681410,1.2443,2571.3,2571.1,5.31487]
[1747718681618,1.9215,2571.3,2571.1,5.31487]
[1747718681816,1.9215,2571.3,2571.2,0.77766]
[1747718682717,0.6477,2571.6,2571.4,0.77758]
[1747718682918,1.42523,2571.6,2571.5,3.2078]
[1747718683112,0.6477,2571.6,2571.5,5.9478]
[1747718683315,3.2078,2572.1,2571.6,0.77752]
[1747718683627,1.2916,2572.0,2571.8,0.77747]
[1747718683816,1.2916,2572.0,2571.9,0.77744]
[1747718684021,1.2916,2572.0,2571.8,0.77746]
[1747718684325,1.2916,2572.0,2571.9,2.74]
[1747718685929,1.2916,2572.0,2571.9,3.51744]
[1747718686426,0.6439,2572.0,2571.9,6.72524]
[1747718686624,0.6439,2572.0,2571.9,3.51744]
[1747718686825,0.6439,2572.0,2571.9,2.74]
[1747718689227,1.42131,2572.0,2571.9,2.74]
[1747718689521,0.00583669,2572.3,2571.9,5.9478]
[1747718689720,0.00583669,2572.3,2572.2,3.2078]
[1747718689920,0.00583669,2572.3,2572.2,4.5638]
[1747718690620,0.00583669,2572.3,2572.2,5.34115]
[1747718691231,0.78315669,2572.3,2572.2,4.5638]
[1747718691527,0.00583669,2572.3,2572.2,4.5638]
[1747718692427,0.00583669,2572.3,2572.2,5.34115]
[1747718692824,0.00583669,2572.3,2572.2,5.98925]
[1747718694824,0.78315669,2572.3,2572.2,3.2078]
[1747718695021,0.77735,2572.2,2572.1,2.74]
[1747718695224,1.43335,2572.2,2572.0,3.4255]
[1747718695525,1.44498,2572.1,2572.0,2.74]
[1747718695921,0.7775,2571.7,2571.6,3.2078]
[1747718698123,0.77763,2571.3,2571.1,3.2078]
[1747718698331,0.77766,2571.2,2571.1,3.2078]
[1747718700029,1.2723,2571.5,2571.2,0.77764]
[1747718700226,2.04987,2571.5,2571.2,2.12224]
[1747718700528,1.2723,2571.5,2571.2,2.12224]
[1747718700731,2.04987,2571.5,2571.2,1.3446]
[1747718700929,1.2723,2571.5,2571.2,2.12224]
[1747718701231,1.2723,2571.5,2571.3,1.2699]
[1747718701530,2.04987,2571.5,2571.3,1.2699]
[1747718702324,2.04987,2571.5,2571.3,4.0099]
[1747718703931,0.77759,2571.4,2571.3,4.0099]
[1747718704230,2.06909,2571.4,2571.3,4.0099]
[1747718705927,2.06909,2571.4,2571.3,2.74]
[1747718706131,0.77778,2570.8,2570.7,3.8601]
[1747718707627,2.74205,2570.9,2570.7,3.8601]
[1747718707833,0.00583669,2571.0,2570.7,3.8601]
[1747718708131,0.00583669,2571.0,2570.9,0.77775]
[1747718708326,3.98532,2571.7,2571.4,0.77759]
[1747718708522,0.77748,2571.8,2571.5,2.11105]
[1747718708722,2.7231,2572.0,2571.5,1.3335]
[1747718709031,0.96977317,2572.1,2571.9,0.77744]
[1747718709231,0.96977317,2572.1,2572.0,2.0343]
[1747718709432,0.96977317,2572.1,2572.0,2.6856]
[1747718709623,0.77738,2572.1,2572.0,2.6856]
[1747718710224,0.77737,2572.2,2572.0,5.4256]
[1747718710934,2.02807,2572.2,2572.0,5.4256]
[1747718711937,0.97560986,2572.3,2572.0,5.4256]
[1747718712236,0.97560986,2572.3,2572.1,3.2078]
[1747718712435,0.97560986,2572.3,2572.2,2.10895]
[1747718713134,1.5946618,2572.9,2572.8,0.77717]
[1747718713330,1.5946618,2572.9,2572.8,3.2078]
[1747718714139,1.5946618,2572.9,2572.8,5.9478]
[1747718714340,0.77714,2572.9,2572.8,7.2317]
[1747718715138,0.77713,2573.0,2572.8,7.2317]
[1747718715341,2.14063,2573.0,2572.8,7.2317]
[1747718715542,0.77714,2572.9,2572.8,7.2317]
[1747718716239,0.77714,2572.9,2572.8,4.0239]
[1747718717040,0.00583669,2573.1,2573.0,0.77711]
[1747718717643,0.00583669,2573.1,2573.0,2.04221]
[1747718718146,0.00583669,2573.1,2573.0,4.78221]
[1747718719944,0.7769,2573.7,2573.4,0.77697]
[1747718720141,5.14955,2574.4,2573.6,3.2078]
[1747718720142,11.0878,2574.4,2573.6,3.2078]
[1747718720341,0.77681,2574.0,2573.8,0.77686]
[1747718720544,2.0109,2574.3,2573.9,4.5806]
[1747718720843,1.3596,2574.5,2574.2,3.98454]
[1747718721040,1.3596,2574.5,2574.3,1.3728]
[1747718721439,0.00583669,2574.6,2574.3,1.3728]
[1747718722144,0.00583669,2574.6,2574.4,0.77669]
[1747718722343,0.00583669,2574.6,2574.5,4.5516]
[1747718722642,0.00583669,2574.6,2574.5,5.32826]
[1747718723145,0.00583669,2574.6,2574.5,8.06826]
[1747718724940,0.00583669,2574.6,2574.5,7.2916]
[1747718725452,0.00583669,2574.6,2574.5,8.06826]
[1747718725853,0.00583669,2574.6,2574.5,7.2916]
[1747718726150,0.00583669,2574.6,2574.5,8.06826]
[1747718729853,0.78246669,2574.6,2574.5,7.2916]
[1747718730155,0.00583669,2574.6,2574.5,7.2916]
[1747718730654,1.31923669,2574.6,2574.5,7.2916]
[1747718730954,1.31923669,2574.6,2574.5,8.06826]
[1747718731155,1.31923669,2574.6,2574.5,4.5516]
[1747718731656,2.77876669,2574.6,2574.5,3.2078]
[1747718732055,0.77666,2574.5,2574.4,2.74]
[1747718732359,0.77675,2574.2,2574.1,2.42083669]
[1747718732557,0.77675,2574.3,2574.1,2.42083669]
[1747718732759,1.3282,2574.2,2574.1,6.40541669]
[1747718732957,1.3282,2574.2,2574.1,7.71641669]
[1747718734662,2.10495,2574.2,2574.1,2.42083669]
[1747718735053,2.10495,2574.2,2574.1,0.00583669]
[1747718735659,2.10495,2574.2,2573.5,3.2078]
[1747718735660,0.77684,2573.9,2573.5,3.2078]
[1747718735850,0.77684,2573.9,2573.6,0.77692]
[1747718735851,1.2761,2573.8,2573.6,0.77692]
[1747718736049,1.2761,2573.8,2573.7,0.7769]
[1747718736250,0.77679,2574.1,2573.6,1.2996]
[1747718736457,1.2761,2574.0,2573.9,3.2078]
[1747718736760,1.2761,2574.0,2573.9,3.98464]
[1747718737155,1.2761,2574.0,2573.9,3.2078]
[1747718737353,2.05291,2574.0,2573.9,3.2078]
[1747718738262,1.2761,2574.0,2573.9,3.2078]
[1747718739262,1.2761,2574.0,2573.9,4.4625]
[1747718739565,0.77679,2574.1,2573.9,4.4625]
[1747718739766,1.2689,2574.0,2573.9,4.4625]
[1747718740458,1.43366,2574.5,2574.3,0.77671]
[1747718740660,1.43366,2574.5,2574.4,3.98449]
[1747718740661,1.2992,2574.5,2574.4,3.98449]
[1747718740960,0.00583669,2574.6,2574.5,0.77666]
[1747718741168,0.00583669,2574.6,2574.5,2.0029]
[1747718741364,1.30503669,2574.6,2574.5,2.0029]
[1747718741567,0.77666,2574.5,2574.4,3.2078]
[1747718741765,1.30503669,2574.6,2574.4,3.2078]
[1747718741961,0.00583669,2574.6,2574.5,2.10086]
[1747718743063,0.00583669,2574.6,2574.5,4.84086]
[1747718743460,0.00583669,2574.6,2574.5,12.71486]
[1747718748074,0.00583669,2574.6,2574.5,17.71486]
[1747718748767,1.3413,2575.2,2575.1,0.77648]
[1747718748965,1.46067,2575.5,2575.1,0.77648]
[1747718748966,0.77638,2575.5,2575.3,0.77642]
[1747718749167,0.77638,2575.5,2575.3,0.77641]
[1747718749469,0.77638,2575.5,2575.4,1.3558]
[1747718749966,0.77642,2575.3,2575.2,7.8728249]
[1747718750778,0.77642,2575.3,2575.2,0.0058249]
[1747718751068,0.77642,2575.3,2575.2,1.2451249]
[1747718752370,0.77642,2575.3,2575.2,0.0058249]
[1747718752575,1.41582,2575.3,2575.2,0.0058249]
[1747718754876,6.41582,2575.3,2575.2,0.0058249]
[1747718755269,7.70652,2575.3,2575.2,0.0058249]
[1747718755470,2.70652,2575.3,2575.2,0.0058249]
[1747718762480,1.94115,2575.2,2574.3,3.2078]
[1747718762683,0.77663,2574.6,2574.4,4.4556]
[1747718764081,0.77666,2574.5,2574.4,4.4556]
[1747718764277,1.3684,2574.6,2574.4,4.4556]
[1747718765182,0.77666,2574.5,2574.4,3.2078]
[1747718765685,0.77669,2574.4,2574.3,0.0058249]
[1747718765886,0.77678,2574.1,2574.0,3.2078]
[1747718766081,0.77689,2573.8,2573.6,1.2565]
[1747718766379,1.3053,2573.7,2573.6,1.2565]
[1747718766585,2.0822,2573.7,2573.6,1.2565]
[1747718766785,0.77693,2573.6,2573.5,3.2078]
[1747718766980,2.08223,2573.6,2573.5,3.2078]
[1747718767377,2.08223,2573.6,2573.3,0.0058249]
[1747718767378,0.77699,2573.4,2573.3,0.0058249]
[1747718767981,0.77702,2573.3,2573.2,1.90385624]
[1747718768181,0.77717,2572.9,2572.5,5.11165624]
[1747718768478,4.4948,2573.2,2572.5,5.11165624]
[1747718768679,2.06419,2572.8,2572.5,5.11165624]
[1747718768878,2.06419,2572.8,2572.6,1.372]
[1747718769076,1.287,2572.8,2572.6,1.372]
[1747718769484,0.77712,2573.0,2572.7,0.7772]
[1747718769684,0.77712,2573.0,2572.8,1.372]
[1747718770085,0.77714,2572.9,2572.8,1.372]
[1747718770282,0.77723,2572.6,2572.5,1.90385624]
[1747718770686,0.77723,2572.6,2572.5,3.27585624]
[1747718771081,3.2078,2573.2,2572.5,3.27585624]
[1747718771277,0.6734,2573.5,2573.0,3.2078]
[1747718771586,0.7826949,2573.8,2573.3,3.2078]
[1747718771787,0.7827049,2573.8,2573.5,0.77693]
[1747718772082,2.1098049,2573.8,2573.6,1.3566]
[1747718772977,1.3329249,2573.8,2573.6,2.13352]
[1747718773181,1.3329249,2573.8,2573.6,1.3566]
[1747718773182,2.1097949,2573.8,2573.6,1.3566]
[1747718773383,2.1097949,2573.8,2573.7,1.3566]
[1747718774789,1.3329249,2573.8,2573.7,1.3566]
[1747718774993,0.0058249,2573.8,2573.7,1.3566]